[Event "10th LBHM Open 2024"]
[Site "Pune"]
[Date "2024.05.21"]
[Round "4.2"]
[White "Ghadge Harsh"]
[Black "Aronyak Ghosh"]
[Result "0-1"]
[ECO "E15"]
[WhiteElo "1846"]
[BlackElo "2536"]
[PlyCount "106"]
[EventDate "2024.05.21"]
[EventType "swiss"]
[EventCountry "IND"]
[TimeControl "5400+30"]

1. d4 {[%emt 0:00:03]} Nf6 2. c4 {[%emt 0:00:08]} e6 {[%emt 0:02:10]} 3. Nf3 {[%emt 0:00:12]} b6 {[%emt 0:01:00]} 4. g3 {[%emt 0:00:17]} Ba6 {[%emt 0:01:40]} 5. b3 {[%emt 0:00:05]} Bb4+ {[%emt 0:03:05]} 6. Bd2 {[%emt 0:00:05]} Be7 {[%emt 0:00:04]} 7. Nc3 {[%emt 0:00:49]} c6 {[%emt 0:03:51]} 8. Qc2 {[%emt 0:03:03]} d5 {[%emt 0:02:25]} 9. e3 {[%emt 0:06:26]} O-O {[%emt 0:07:03]} 10. Bd3 {[%emt 0:09:49]} Nbd7 {[%emt 0:07:14]} 11. cxd5 {[%emt 0:03:21]} Bxd3 {[%emt 0:00:24]} 12. Qxd3 {[%emt 0:00:03]} exd5 {[%emt 0:03:33]} 13. O-O {[%emt 0:00:49]} Re8 {[%emt 0:05:50]} 14. e4 {[%emt 0:21:18]} Nc5 {[%emt 0:08:39]} 15. dxc5 {[%emt 0:10:27]} dxe4 {[%emt 0:00:09]} 16. Qxd8 {[%emt 0:01:51]} Raxd8 {[%emt 0:00:22]} 17. Ng5 {[%emt 0:03:28]} Rxd2 {[%emt 0:01:21]} 18. Ngxe4 {[%emt 0:02:49]} Nxe4 {[%emt 0:04:37]} 19. Nxe4 {[%emt 0:00:15]} Rd4 {[%emt 0:00:05]} 20. Rfe1 {[%emt 0:01:35]} Kf8 {[%emt 0:00:59]} 21. Rad1 {[%emt 0:10:49]} Rxd1 {[%emt 0:00:30]} 22. Rxd1 {[%emt 0:00:12]} f5 {[%emt 0:00:09]} 23. Nd6 {[%emt 0:04:23]} Rd8 {[%emt 0:00:15]} 24. Rd2 {[%emt 0:00:44]} Bxd6 {[%emt 0:00:39]} 25. cxd6 {[%emt 0:00:09]} Kf7 {[%emt 0:00:04]} 26. Rd4 {[%emt 0:01:14]} Ke6 {[%emt 0:03:21]} 27. Ra4 {[%emt 0:00:17]} Rd7 {[%emt 0:04:34]} 28. Kg2 {[%emt 0:00:36]} c5 {[%emt 0:00:36]} 29. Kf3 {[%emt 0:00:45]} Kxd6 {[%emt 0:00:34]} 30. Kf4 {[%emt 0:00:45]} Ke6 {[%emt 0:01:55]} 31. Ra6 {[%emt 0:00:26]} g6 {[%emt 0:02:14]} 32. h4 {[%emt 0:00:19]} Kd5 {[%emt 0:02:53]} 33. Ke3 {[%emt 0:02:22]} Kc6 {[%emt 0:05:00]} 34. Ra4 {[%emt 0:00:43]} Kb7 {[%emt 0:00:34]} 35. Rc4 Rd5 {[%emt 0:02:29]} 36. Rc2 {[%emt 0:01:07]} Rd4 {[%emt 0:01:22]} 37. a3 {[%emt 0:00:28]} Kc6 {[%emt 0:02:51]} 38. f3 {[%emt 0:00:38]} Kd5 {[%emt 0:01:03]} 39. Rc3 {[%emt 0:00:17]} b5 {[%emt 0:00:43]} 40. Rc1 {[%emt 0:00:54]} a5 {[%emt 0:00:12]} 41. Rc2 {[%emt 0:00:24]} a4 {[%emt 0:01:50]} 42. bxa4 {[%emt 0:00:11]} Rxa4 {[%emt 0:00:06]} 43. Rc3 {[%emt 0:00:29]} c4 {[%emt 0:00:11]} 44. g4 {[%emt 0:00:29]} f4+ {[%emt 0:01:20]} 45. Kxf4 {[%emt 0:00:54]} Kd4 {[%emt 0:00:01]} 46. Rc1 {[%emt 0:01:09]} Rxa3 {[%emt 0:00:08]} 47. h5 {[%emt 0:00:17]} gxh5 {[%emt 0:00:12]} 48. gxh5 {[%emt 0:00:04]} b4 {[%emt 0:00:34]} 49. Rb1 {[%emt 0:00:37]} b3 {[%emt 0:00:09]} 50. Rd1+ {[%emt 0:00:04]} Kc3 {[%emt 0:00:06]} 51. Kg5 {[%emt 0:00:10]} b2 {[%emt 0:00:11]} 52. f4 {[%emt 0:00:21]} Ra1 {[%emt 0:00:04]} 53. Rxa1 {[%emt 0:00:05]} bxa1=Q {[%emt 0:00:05]} 0-1

[Event "10th LBHM Open 2024"]
[Site "Pune"]
[Date "2024.05.21"]
[Round "4.3"]
[White "Neelash Saha"]
[Black "Pranav Sai Ram R S"]
[Result "1-0"]
[ECO "D11"]
[WhiteElo "2483"]
[BlackElo "1826"]
[PlyCount "91"]
[EventDate "2024.05.21"]
[EventType "swiss"]
[EventCountry "IND"]
[TimeControl "5400+30"]

1. d4 {[%emt 0:00:04]} d5 {[%emt 0:00:12]} 2. c4 {[%emt 0:00:07]} c6 {[%emt 0:00:05]} 3. Nf3 {[%emt 0:00:08]} Nf6 {[%emt 0:00:05]} 4. e3 {[%emt 0:00:06]} Bg4 {[%emt 0:00:50]} 5. Nc3 {[%emt 0:00:49]} Bxf3 {[%emt 0:02:37]} 6. Qxf3 {[%emt 0:00:37]} e6 {[%emt 0:01:13]} 7. Bd3 {[%emt 0:00:08]} Bd6 {[%emt 0:01:37]} 8. O-O {[%emt 0:03:07]} O-O {[%emt 0:02:33]} 9. e4 {[%emt 0:03:06]} dxc4 {[%emt 0:08:03]} 10. Bxc4 {[%emt 0:00:17]} e5 {[%emt 0:01:56]} 11. d5 {[%emt 0:00:08]} b5 {[%emt 0:03:45]} 12. Bb3 {[%emt 0:00:06]} b4 {[%emt 0:03:33]} 13. Ne2 {[%emt 0:01:05]} cxd5 {[%emt 0:02:33]} 14. exd5 {[%emt 0:01:57]} e4 {[%emt 0:01:24]} 15. Qh3 {[%emt 0:00:05]} Nbd7 {[%emt 0:05:46]} 16. Ng3 {[%emt 0:02:30]} Nc5 {[%emt 0:04:36]} 17. Bc4 {[%emt 0:03:32]} Nfd7 {[%emt 0:12:29]} 18. Be3 {[%emt 0:04:18]} Ne5 {[%emt 0:01:32]} 19. b3 {[%emt 0:00:09]} Re8 {[%emt 0:05:42]} 20. Bb5 {[%emt 0:02:18]} Rf8 {[%emt 0:04:52]} 21. Rad1 {[%emt 0:00:43]} Qa5 {[%emt 0:06:24]} 22. Nf5 {[%emt 0:00:56]} Qxb5 {[%emt 0:04:08]} 23. Nxd6 {[%emt 0:00:26]} Qa5 {[%emt 0:00:08]} 24. Bd4 {[%emt 0:06:30]} Ned7 {[%emt 0:07:17]} 25. Nf5 {[%emt 0:02:27]} f6 {[%emt 0:00:11]} 26. Ne7+ {[%emt 0:00:23]} Kf7 {[%emt 0:00:09]} 27. Nc6 {[%emt 0:00:03]} Qc7 {[%emt 0:00:52]} 28. Rc1 {[%emt 0:01:34]} Qd6 {[%emt 0:02:27]} 29. Bxc5 {[%emt 0:00:05]} Nxc5 {[%emt 0:00:09]} 30. Rxc5 {[%emt 0:00:02]} Rae8 {[%emt 0:01:36]} 31. Rfc1 {[%emt 0:01:03]} Qf4 {[%emt 0:01:11]} 32. Qe3 {[%emt 0:00:12]} Qd6 {[%emt 0:00:22]} 33. Qg3 {[%emt 0:00:35]} Qxg3 {[%emt 0:00:30]} 34. hxg3 {[%emt 0:00:06]} e3 {[%emt 0:00:06]} 35. Re1 {[%emt 0:00:31]} exf2+ {[%emt 0:00:23]} 36. Kxf2 {[%emt 0:00:04]} Rxe1 {[%emt 0:00:09]} 37. Kxe1 {[%emt 0:00:04]} Ke8 {[%emt 0:00:06]} 38. Nxb4 {[%emt 0:00:13]} Kd7 {[%emt 0:00:04]} 39. Ra5 {[%emt 0:00:05]} Re8+ {[%emt 0:00:07]} 40. Kd2 {[%emt 0:00:07]} Kd6 {[%emt 0:00:06]} 41. Rxa7 {[%emt 0:00:13]} Kc5 {[%emt 0:00:03]} 42. a3 {[%emt 0:00:05]} Re4 {[%emt 0:00:22]} 43. Rxg7 {[%emt 0:00:05]} h5 {[%emt 0:00:12]} 44. Rc7+ {[%emt 0:00:12]} Kd6 {[%emt 0:00:06]} 45. Rc6+ {[%emt 0:00:02]} Ke7 {[%emt 0:00:08]} 46. Re6+ {[%emt 0:00:03]} 1-0

[Event "10th LBHM Open 2024"]
[Site "Pune"]
[Date "2024.05.21"]
[Round "4.4"]
[White "Kolla Bhaavan"]
[Black "Nitin, S.."]
[Result "0-1"]
[ECO "B28"]
[WhiteElo "1833"]
[BlackElo "2356"]
[PlyCount "60"]
[EventDate "2024.05.21"]
[EventType "swiss"]
[EventCountry "IND"]
[TimeControl "5400+30"]

1. e4 {[%emt 0:05:25]} c5 {[%emt 0:00:33]} 2. Nf3 {[%emt 0:00:46]} a6 {[%emt 0:01:09]} 3. d4 {[%emt 0:07:19]} cxd4 {[%emt 0:00:26]} 4. Qxd4 {[%emt 0:00:11]} Nc6 {[%emt 0:03:34]} 5. Qe3 {[%emt 0:00:33]} Nf6 {[%emt 0:04:52]} 6. Be2 {[%emt 0:05:47]} d5 {[%emt 0:04:08]} 7. exd5 {[%emt 0:03:54]} Nxd5 {[%emt 0:01:10]} 8. Qd2 {[%emt 0:06:30]} Bf5 {[%emt 0:02:17]} 9. a3 {[%emt 0:08:25]} Nf6 {[%emt 0:20:41]} 10. c3 {[%emt 0:14:15]} e6 {[%emt 0:04:24]} 11. Qxd8+ {[%emt 0:06:20]} Rxd8 {[%emt 0:00:18]} 12. Nbd2 {[%emt 0:00:36]} Bc5 {[%emt 0:01:22]} 13. Nc4 {[%emt 0:10:38]} Nd5 {[%emt 0:07:00]} 14. Ne3 {[%emt 0:09:48]} Be4 {[%emt 0:02:07]} 15. Nxd5 {[%emt 0:01:52]} exd5 {[%emt 0:00:42]} 16. Be3 {[%emt 0:02:47]} Bxe3 {[%emt 0:00:29]} 17. fxe3 {[%emt 0:00:02]} O-O {[%emt 0:01:14]} 18. Kf2 {[%emt 0:01:31]} Rfe8 {[%emt 0:00:19]} 19. Rad1 {[%emt 0:00:22]} b5 {[%emt 0:02:41]} 20. b4 {[%emt 0:03:03]} Re6 {[%emt 0:04:24]} 21. Rhf1 {[%emt 0:06:46]} Rde8 {[%emt 0:04:22]} 22. Ng5 {[%emt 0:01:59]} Rf6+ {[%emt 0:01:21]} 23. Kg1 {[%emt 0:00:13]} Bc2 {[%emt 0:00:28]} 24. Rxd5 {[%emt 0:01:38]} Rxe3 {[%emt 0:00:24]} 25. Bf3 {[%emt 0:01:34]} h6 {[%emt 0:00:21]} 26. Nh3 {[%emt 0:00:20]} Ne5 {[%emt 0:02:01]} 27. Rd8+ {[%emt 0:00:49]} Kh7 {[%emt 0:00:05]} 28. Rc8 Nxf3+ {[%emt 0:01:21]} 29. Rxf3 {[%emt 0:00:45]} Rexf3 {[%emt 0:00:09]} 30. gxf3 {[%emt 0:00:05]} Bf5 {[%emt 0:00:08]} 0-1

[Event "10th LBHM Open 2024"]
[Site "Pune"]
[Date "2024.05.21"]
[Round "4.5"]
[White "Kherdekar Arnav"]
[Black "Ratnakaran, K.."]
[Result "0-1"]
[ECO "C05"]
[WhiteElo "1825"]
[BlackElo "2275"]
[PlyCount "56"]
[EventDate "2024.05.21"]
[EventType "swiss"]
[EventCountry "IND"]
[TimeControl "5400+30"]

1. e4 {[%emt 0:03:54]} e6 {[%emt 0:00:05]} 2. d4 {[%emt 0:00:04]} d5 {[%emt 0:00:04]} 3. Nd2 {[%emt 0:00:19]} Nf6 {[%emt 0:00:06]} 4. e5 {[%emt 0:00:05]} Nfd7 {[%emt 0:00:02]} 5. c3 {[%emt 0:00:07]} c5 {[%emt 0:00:04]} 6. f4 {[%emt 0:00:04]} Nc6 {[%emt 0:00:11]} 7. Ndf3 {[%emt 0:00:02]} f6 {[%emt 0:00:09]} 8. Bd3 {[%emt 0:00:34]} cxd4 {[%emt 0:00:12]} 9. cxd4 {[%emt 0:00:08]} Bb4+ {[%emt 0:00:20]} 10. Bd2 {[%emt 0:02:14]} fxe5 {[%emt 0:00:07]} 11. fxe5 {[%emt 0:02:15]} O-O {[%emt 0:00:07]} 12. Ne2 {[%emt 0:04:50]} Rxf3 {[%emt 0:02:19]} 13. gxf3 {[%emt 0:03:56]} Qh4+ {[%emt 0:00:05]} 14. Kf1 {[%emt 0:03:15]} Qh3+ {[%emt 0:03:33]} 15. Kf2 {[%emt 0:02:01]} Ndxe5 {[%emt 0:02:45]} 16. dxe5 {[%emt 0:04:44]} Nxe5 {[%emt 0:00:11]} 17. Nf4 {[%emt 0:19:49]} Bc5+ {[%emt 0:03:09]} 18. Be3 {[%emt 0:00:29]} Qh4+ {[%emt 0:00:22]} 19. Ke2 {[%emt 0:00:24]} Bxe3 {[%emt 0:00:11]} 20. Kxe3 {[%emt 0:00:10]} d4+ {[%emt 0:00:14]} 21. Kxd4 {[%emt 0:10:36]} Qxf4+ {[%emt 0:00:37]} 22. Be4 {[%emt 0:00:39]} Bd7 {[%emt 0:00:27]} 23. b3 {[%emt 0:17:50]} Rc8 {[%emt 0:04:30]} 24. Rc1 {[%emt 0:06:07]} Rxc1 {[%emt 0:02:32]} 25. Qxc1 {[%emt 0:00:02]} Nxf3+ {[%emt 0:00:08]} 26. Kc3 {[%emt 0:00:02]} Qxe4 {[%emt 0:00:10]} 27. Rd1 {[%emt 0:00:48]} Qe5+ {[%emt 0:00:44]} 28. Kb4 {[%emt 0:00:21]} Nd4 {[%emt 0:01:14]} 0-1

[Event "10th LBHM Open 2024"]
[Site "Pune"]
[Date "2024.05.21"]
[Round "4.6"]
[White "Kiran, Panditrao"]
[Black "Dere Pushkar"]
[Result "0-1"]
[ECO "B12"]
[WhiteElo "1804"]
[BlackElo "2209"]
[PlyCount "72"]
[EventDate "2024.05.21"]
[EventType "swiss"]
[EventCountry "IND"]
[TimeControl "5400+30"]

1. e4 {[%emt 0:00:05]} c6 {[%emt 0:03:28]} 2. d4 {[%emt 0:00:05]} d5 {[%emt 0:00:03]} 3. e5 {[%emt 0:00:14]} c5 {[%emt 0:02:30]} 4. dxc5 {[%emt 0:00:09]} e6 {[%emt 0:00:06]} 5. Be3 {[%emt 0:00:56]} Nd7 {[%emt 0:00:51]} 6. Nf3 {[%emt 0:00:59]} Bxc5 {[%emt 0:01:03]} 7. Bxc5 {[%emt 0:00:51]} Nxc5 {[%emt 0:00:07]} 8. Be2 {[%emt 0:02:58]} Ne7 {[%emt 0:00:32]} 9. O-O {[%emt 0:00:18]} Nc6 {[%emt 0:04:11]} 10. Re1 {[%emt 0:00:58]} Qb6 {[%emt 0:02:26]} 11. Nc3 {[%emt 0:03:38]} O-O {[%emt 0:01:46]} 12. Rb1 {[%emt 0:05:31]} Ne4 {[%emt 0:02:52]} 13. Nxe4 {[%emt 0:01:15]} dxe4 {[%emt 0:01:18]} 14. Ng5 {[%emt 0:00:18]} e3 {[%emt 0:03:14]} 15. f4 {[%emt 0:01:27]} Rd8 {[%emt 0:00:37]} 16. Qc1 {[%emt 0:00:31]} Rd2 {[%emt 0:07:26]} 17. Kh1 {[%emt 0:03:27]} Nb4 {[%emt 0:02:40]} 18. Ra1 {[%emt 0:07:47]} Rxc2 {[%emt 0:07:14]} 19. Qb1 {[%emt 0:01:27]} h6 {[%emt 0:03:05]} 20. a3 {[%emt 0:08:17]} hxg5 {[%emt 0:05:09]} 21. axb4 {[%emt 0:00:09]} Rd2 {[%emt 0:03:44]} 22. Qe4 {[%emt 0:02:38]} Bd7 {[%emt 0:03:14]} 23. Bd3 {[%emt 0:02:47]} Bc6 {[%emt 0:01:19]} 24. Qh7+ {[%emt 0:02:11]} Kf8 {[%emt 0:00:23]} 25. Bf1 {[%emt 0:17:59]} gxf4 {[%emt 0:04:17]} 26. Qh8+ {[%emt 0:01:55]} Ke7 {[%emt 0:00:03]} 27. Qh4+ {[%emt 0:02:06]} Ke8 {[%emt 0:00:42]} 28. Qxf4 {[%emt 0:00:23]} Rf2 {[%emt 0:07:31]} 29. Qh4 {[%emt 0:02:35]} Rd8 {[%emt 0:01:29]} 30. Qh8+ {[%emt 0:03:17]} Ke7 {[%emt 0:00:43]} 31. Qh4+ {[%emt 0:00:17]} Kd7 {[%emt 0:00:47]} 32. b5 {[%emt 0:07:24]} Bd5 {[%emt 0:01:03]} 33. Qg3 {[%emt 0:04:42]} Rc8 {[%emt 0:02:44]} 34. Qxg7 {[%emt 0:04:57]} Rcc2 {[%emt 0:01:37]} 35. Rac1 {[%emt 0:03:02]} Rxc1 {[%emt 0:05:02]} 36. Rxc1 {[%emt 0:00:51]} Qc5 {[%emt 0:00:10]} 0-1

[Event "10th LBHM Open 2024"]
[Site "Pune"]
[Date "2024.05.21"]
[Round "4.7"]
[White "Md Imran"]
[Black "Singla Aaryan"]
[Result "1/2-1/2"]
[ECO "A03"]
[WhiteElo "2184"]
[BlackElo "1798"]
[PlyCount "94"]
[EventDate "2024.05.21"]
[EventType "swiss"]
[EventCountry "IND"]
[TimeControl "5400+30"]

1. b3 {[%emt 0:02:20]} Nf6 {[%emt 0:00:37]} 2. Bb2 {[%emt 0:00:02]} d5 {[%emt 0:00:13]} 3. e3 {[%emt 0:00:08]} Bf5 {[%emt 0:00:21]} 4. f4 {[%emt 0:00:23]} e6 {[%emt 0:01:37]} 5. Nf3 {[%emt 0:00:02]} Be7 {[%emt 0:00:18]} 6. Bd3 {[%emt 0:00:07]} Nbd7 {[%emt 0:02:20]} 7. Bxf5 {[%emt 0:00:04]} exf5 {[%emt 0:00:05]} 8. O-O {[%emt 0:00:04]} O-O {[%emt 0:00:21]} 9. c4 {[%emt 0:00:44]} Nc5 {[%emt 0:01:00]} 10. cxd5 {[%emt 0:02:12]} Nxd5 {[%emt 0:00:39]} 11. Qc2 {[%emt 0:00:50]} Ne4 {[%emt 0:02:57]} 12. a3 {[%emt 0:01:59]} Bf6 {[%emt 0:03:50]} 13. Re1 {[%emt 0:00:46]} Bxb2 {[%emt 0:02:02]} 14. Qxb2 {[%emt 0:00:02]} Qf6 {[%emt 0:02:09]} 15. Qxf6 {[%emt 0:00:05]} Ndxf6 {[%emt 0:02:03]} 16. Rc1 {[%emt 0:00:54]} c6 {[%emt 0:00:35]} 17. d3 {[%emt 0:00:03]} Nd6 {[%emt 0:00:07]} 18. Nbd2 {[%emt 0:00:01]} Rfe8 {[%emt 0:00:47]} 19. Nf1 {[%emt 0:01:43]} Rad8 {[%emt 0:02:34]} 20. Kf2 {[%emt 0:05:49]} Nb5 {[%emt 0:01:51]} 21. Ke2 {[%emt 0:00:09]} Nd5 {[%emt 0:02:10]} 22. Kd2 {[%emt 0:00:05]} a5 {[%emt 1:12:54]} 23. Rc5 {[%emt 0:04:16]} Ra8 {[%emt 0:00:00]} 24. a4 {[%emt 0:00:55]} Nbc7 {[%emt 0:00:00]} 25. Nd4 {[%emt 0:00:58]} Ne6 {[%emt 0:00:00]} 26. Nxe6 {[%emt 0:00:03]} Rxe6 {[%emt 0:00:00]} 27. Re1 {[%emt 0:06:12]} b6 {[%emt 0:00:00]} 28. Rcc1 {[%emt 0:00:34]} Rd8 {[%emt 0:00:00]} 29. Red1 {[%emt 0:08:35]} c5 {[%emt 0:00:00]} 30. Rc4 {[%emt 0:01:44]} Red6 {[%emt 0:00:00]} 31. Ke2 {[%emt 0:01:22]} Nb4 {[%emt 0:00:00]} 32. Rc3 {[%emt 0:01:02]} g6 {[%emt 0:00:00]} 33. h3 {[%emt 0:00:13]} h5 {[%emt 0:00:00]} 34. g3 {[%emt 0:00:21]} Kf8 {[%emt 0:00:00]} 35. Rd2 {[%emt 0:00:05]} Ke7 {[%emt 0:00:00]} 36. Nh2 {[%emt 0:00:49]} Nd5 {[%emt 0:00:00]} 37. Rc4 {[%emt 0:00:27]} Nb4 {[%emt 0:00:00]} 38. d4 {[%emt 0:01:27]} cxd4 {[%emt 0:00:00]} 39. exd4 {[%emt 0:01:41]} f6 {[%emt 0:00:00]} 40. Nf3 {[%emt 0:00:06]} Kf7 {[%emt 0:00:00]} 41. Kf2 {[%emt 0:00:56]} Nc6 {[%emt 0:00:00]} 42. Rc1 {[%emt 0:03:48]} R8d7 {[%emt 0:00:00]} 43. Rc4 {[%emt 0:00:30]} Rd8 {[%emt 0:00:00]} 44. Rd1 {[%emt 0:00:16]} R8d7 {[%emt 0:00:00]} 45. Ke2 {[%emt 0:00:16]} Re7+ {[%emt 0:00:00]} 46. Kf2 {[%emt 0:01:18]} Red7 {[%emt 0:00:00]} 47. Rd2 {[%emt 0:00:10]} Rd8 {[%emt 0:12:30]} 1/2-1/2

[Event "10th LBHM Open 2024"]
[Site "Pune"]
[Date "2024.05.21"]
[Round "4.8"]
[White "Gade Sharanya"]
[Black "Koustuv Dash"]
[Result "0-1"]
[ECO "D35"]
[WhiteElo "1790"]
[BlackElo "2133"]
[PlyCount "166"]
[EventDate "2024.05.21"]
[EventType "swiss"]
[EventCountry "IND"]
[TimeControl "5400+30"]

1. d4 {[%emt 0:00:58]} d5 {[%emt 0:00:16]} 2. c4 {[%emt 0:00:10]} e6 {[%emt 0:00:05]} 3. Nc3 {[%emt 0:00:07]} Nf6 {[%emt 0:00:03]} 4. cxd5 {[%emt 0:00:19]} exd5 {[%emt 0:00:07]} 5. Bg5 {[%emt 0:00:06]} c6 {[%emt 0:00:16]} 6. e3 {[%emt 0:00:10]} Be7 {[%emt 0:00:07]} 7. Bd3 {[%emt 0:00:21]} h6 {[%emt 0:00:08]} 8. Bh4 {[%emt 0:00:09]} O-O {[%emt 0:00:08]} 9. Nge2 {[%emt 0:00:34]} Ne8 {[%emt 0:00:06]} 10. Bg3 {[%emt 0:03:41]} Nd6 {[%emt 0:00:08]} 11. Qc2 {[%emt 0:00:43]} Re8 {[%emt 0:00:10]} 12. O-O {[%emt 0:01:13]} Bf8 {[%emt 0:00:06]} 13. Rae1 {[%emt 0:02:41]} a5 {[%emt 0:00:06]} 14. Nc1 {[%emt 0:01:47]} Na6 {[%emt 0:00:42]} 15. a3 {[%emt 0:00:49]} Be6 {[%emt 0:13:58]} 16. f3 {[%emt 0:13:32]} Rc8 {[%emt 0:09:11]} 17. e4 {[%emt 0:11:05]} dxe4 {[%emt 0:02:40]} 18. fxe4 {[%emt 0:01:03]} b5 {[%emt 0:06:51]} 19. Qf2 {[%emt 0:07:39]} Nc4 {[%emt 0:02:06]} 20. Kh1 {[%emt 0:03:46]} Qb6 {[%emt 0:03:12]} 21. Nb3 {[%emt 0:18:15]} a4 {[%emt 0:07:59]} 22. Nc1 {[%emt 0:06:57]} Red8 {[%emt 0:00:30]} 23. Bxc4 {[%emt 0:01:35]} Bxc4 {[%emt 0:00:25]} 24. N1e2 {[%emt 0:05:03]} Rd7 {[%emt 0:07:53]} 25. Qf5 {[%emt 0:01:40]} Be6 {[%emt 0:01:40]} 26. Qf3 {[%emt 0:00:10]} Bc4 {[%emt 0:04:40]} 27. Bf2 {[%emt 0:01:26]} Qa5 {[%emt 0:00:38]} 28. Be3 {[%emt 0:00:52]} Rcd8 {[%emt 0:03:23]} 29. Qg3 {[%emt 0:02:47]} Kh8 {[%emt 0:00:43]} 30. Rf5 {[%emt 0:01:18]} Nc7 {[%emt 0:08:13]} 31. Ref1 {[%emt 0:04:56]} Qa6 {[%emt 0:01:08]} 32. R1f2 {[%emt 0:01:31]} Ne8 {[%emt 0:09:29]} 33. Nf4 {[%emt 0:03:20]} Nd6 {[%emt 0:03:13]} 34. Ng6+ {[%emt 0:02:35]} fxg6 {[%emt 0:08:54]} 35. Rxf8+ {[%emt 0:00:08]} Rxf8 {[%emt 0:01:18]} 36. Rxf8+ {[%emt 0:00:05]} Kh7 {[%emt 0:00:01]} 37. Qh3 {[%emt 0:01:30]} Qb7 {[%emt 0:01:02]} 38. e5 {[%emt 0:00:19]} Rf7 {[%emt 0:02:35]} 39. Rxf7 {[%emt 0:01:10]} Nxf7 {[%emt 0:00:01]} 40. Qf3 {[%emt 0:00:14]} Nd8 {[%emt 0:00:48]} 41. Qf8 {[%emt 0:01:31]} Qd7 {[%emt 0:00:50]} 42. Ne4 {[%emt 0:00:55]} Bd5 {[%emt 0:01:42]} 43. Nc5 {[%emt 0:00:55]} Qh3 {[%emt 0:01:27]} 44. Qf2 {[%emt 0:01:05]} Bxg2+ {[%emt 0:00:02]} 45. Qxg2 {[%emt 0:00:05]} Qxe3 {[%emt 0:00:01]} 46. Qg1 {[%emt 0:00:23]} Qf4 {[%emt 0:01:12]} 47. Kg2 {[%emt 0:00:52]} h5 {[%emt 0:00:53]} 48. Qf2 {[%emt 0:00:30]} Qg4+ {[%emt 0:00:06]} 49. Kf1 {[%emt 0:00:49]} g5 {[%emt 0:01:33]} 50. Qe3 {[%emt 0:00:36]} Qf5+ {[%emt 0:01:11]} 51. Kg2 {[%emt 0:00:17]} Qc2+ {[%emt 0:00:45]} 52. Kh3 {[%emt 0:00:43]} Qf5+ {[%emt 0:01:08]} 53. Kg2 {[%emt 0:00:04]} Qc2+ {[%emt 0:00:31]} 54. Kh3 {[%emt 0:00:11]} Qxb2 {[%emt 0:00:24]} 55. e6 {[%emt 0:00:34]} Nxe6 {[%emt 0:00:30]} 56. Qe4+ {[%emt 0:01:34]} Kh8 {[%emt 0:00:23]} 57. Qxe6 {[%emt 0:00:26]} Qxa3+ {[%emt 0:00:22]} 58. Kg2 {[%emt 0:00:08]} Qb2+ {[%emt 0:00:04]} 59. Kg3 {[%emt 0:00:57]} Qc3+ {[%emt 0:00:17]} 60. Kg2 {[%emt 0:00:10]} Qd2+ {[%emt 0:00:16]} 61. Kh3 {[%emt 0:00:20]} Qc3+ {[%emt 0:01:25]} 62. Kg2 {[%emt 0:00:10]} Qd2+ {[%emt 0:00:01]} 63. Kh3 {[%emt 0:01:04]} g4+ {[%emt 0:00:01]} 64. Kg3 {[%emt 0:00:05]} Qg5 {[%emt 0:00:59]} 65. Ne4 {[%emt 0:01:00]} h4+ {[%emt 0:00:58]} 66. Kg2 {[%emt 0:00:07]} Qd5 {[%emt 0:00:42]} 67. Qc8+ {[%emt 0:00:56]} Kh7 {[%emt 0:00:03]} 68. Qxg4 {[%emt 0:00:04]} a3 {[%emt 0:00:31]} 69. Kh3 {[%emt 0:00:50]} a2 {[%emt 0:01:11]} 70. Ng5+ {[%emt 0:00:37]} Kh6 {[%emt 0:00:31]} 71. Kxh4 {[%emt 0:00:20]} g6 {[%emt 0:00:05]} 72. Qf4 {[%emt 0:00:10]} Qf5 {[%emt 0:00:36]} 73. Qc1 {[%emt 0:00:20]} Qb1 {[%emt 0:00:49]} 74. Qf4 {[%emt 0:01:20]} Qf5 {[%emt 0:00:02]} 75. Qc1 {[%emt 0:00:06]} a1=Q {[%emt 0:00:07]} 76. Nf7+ {[%emt 0:00:08]} Kh7 {[%emt 0:00:55]} 77. Qxa1 {[%emt 0:00:47]} Qf4+ {[%emt 0:00:15]} 78. Kh3 {[%emt 0:00:08]} Qf3+ {[%emt 0:00:01]} 79. Kh4 {[%emt 0:00:06]} Qxf7 {[%emt 0:00:06]} 80. Qc1 {[%emt 0:00:50]} Qf2+ {[%emt 0:00:38]} 81. Kh3 {[%emt 0:00:05]} Qf3+ {[%emt 0:00:08]} 82. Kh4 {[%emt 0:00:06]} b4 {[%emt 0:00:17]} 83. Qc5 {[%emt 0:00:41]} Qh5+ {[%emt 0:00:08]} 0-1

[Event "10th LBHM Open 2024"]
[Site "Pune"]
[Date "2024.05.21"]
[Round "4.9"]
[White "Majhi Fakir"]
[Black "Bhosale Shriraj"]
[Result "1/2-1/2"]
[ECO "E67"]
[WhiteElo "1770"]
[BlackElo "2036"]
[PlyCount "80"]
[EventDate "2024.05.21"]
[EventType "swiss"]
[EventCountry "IND"]
[TimeControl "5400+30"]

1. d4 {[%emt 0:00:50]} Nf6 {[%emt 0:04:12]} 2. Nf3 {[%emt 0:00:07]} g6 {[%emt 0:00:08]} 3. g3 {[%emt 0:00:13]} Bg7 {[%emt 0:00:38]} 4. Bg2 {[%emt 0:00:09]} O-O {[%emt 0:00:07]} 5. O-O {[%emt 0:00:07]} d6 {[%emt 0:00:11]} 6. c4 {[%emt 0:00:19]} c6 {[%emt 0:00:20]} 7. Nc3 {[%emt 0:00:09]} Nbd7 {[%emt 0:00:24]} 8. b3 {[%emt 0:02:26]} e5 {[%emt 0:06:04]} 9. dxe5 {[%emt 0:04:24]} dxe5 {[%emt 0:00:26]} 10. Ba3 {[%emt 0:00:28]} Re8 {[%emt 0:00:32]} 11. e4 {[%emt 0:00:35]} Qa5 {[%emt 0:03:33]} 12. Qc1 {[%emt 0:00:27]} b5 {[%emt 0:02:48]} 13. b4 {[%emt 0:04:07]} Qb6 {[%emt 0:00:46]} 14. c5 {[%emt 0:00:15]} Qc7 {[%emt 0:00:06]} 15. Bb2 {[%emt 0:00:37]} a5 {[%emt 0:00:08]} 16. a3 {[%emt 0:00:36]} Nb8 {[%emt 0:02:47]} 17. Re1 {[%emt 0:09:04]} Na6 {[%emt 0:01:50]} 18. Nd1 {[%emt 0:00:57]} Bg4 {[%emt 0:03:12]} 19. Bc3 {[%emt 0:00:48]} Rad8 {[%emt 0:03:18]} 20. Qb2 {[%emt 0:00:25]} Nh5 {[%emt 0:01:21]} 21. Ne3 {[%emt 0:01:01]} Bc8 {[%emt 0:03:48]} 22. Rad1 {[%emt 0:00:26]} f6 {[%emt 0:00:25]} 23. Rd2 {[%emt 0:05:41]} Bf8 {[%emt 0:03:53]} 24. Red1 {[%emt 0:05:01]} Rxd2 {[%emt 0:03:48]} 25. Nxd2 {[%emt 0:01:10]} a4 {[%emt 0:00:39]} 26. Bf3 {[%emt 0:06:38]} Ng7 {[%emt 0:01:11]} 27. Ng4 {[%emt 0:00:31]} Qe7 {[%emt 0:00:39]} 28. Be2 {[%emt 0:12:22]} h5 {[%emt 0:00:55]} 29. Ne3 {[%emt 0:00:06]} Ne6 {[%emt 0:00:29]} 30. Nd5 {[%emt 0:02:38]} cxd5 {[%emt 0:02:37]} 31. exd5 {[%emt 0:00:12]} Ng5 {[%emt 0:07:05]} 32. Bxb5 {[%emt 0:00:25]} Rd8 {[%emt 0:03:27]} 33. Bc4 {[%emt 0:02:12]} Kh7 {[%emt 0:01:56]} 34. h4 {[%emt 0:07:41]} Nh3+ {[%emt 0:00:27]} 35. Kg2 {[%emt 0:00:28]} Nxc5 {[%emt 0:08:14]} 36. bxc5 {[%emt 0:01:17]} Qxc5 {[%emt 0:00:04]} 37. Rf1 {[%emt 0:01:15]} Bh6 {[%emt 0:00:49]} 38. Qb4 {[%emt 0:04:20]} Qa7 {[%emt 0:04:09]} 39. Ne4 {[%emt 0:01:32]} Bg7 {[%emt 0:00:17]} 40. Qb5 {[%emt 0:02:53]} Bf5 {[%emt 0:04:02]} 1/2-1/2